[Event "81st Georgian Women-ch 2024"]
[Site "Tbilisi"]
[Date "2024.02.12"]
[Round "4.3"]
[White "Arabidze, Meri"]
[Black "Tsetskhladze, Mariam"]
[Result "1-0"]
[ECO "A09"]
[WhiteElo "2466"]
[BlackElo "1912"]
[Annotator "TA"]
[PlyCount "57"]
[EventDate "2024.02.08"]
[EventType "tourn"]
[EventCountry "GEO"]
[SourceTitle "playchess.com"]
[Source "ChessBase"]
[SourceQuality "1"]
[TimeControl "40/5400+30:1800+30"]

{[%evp 9,57,-12,-7,-3,-3,-26,-7,-20,0,-6,11,-1,12,0,67,65,73,58,72,78,126,64,82,84,150,152,150,139,175,51,56,50,54,57,72,92,191,196,196,190,212,200,228,225,382,369,528,522,1678,1666]} 1. Nf3 {[%emt 0:00:02]} d5 {[%emt 0:00:55]} 2. c4 {[%emt 0:00:04]} d4 {[%emt 0:00:17]} 3. b4 {[%emt 0:00:06][%cal Bb2b4,Bb4b5][%mdl 32]} f6 {[%emt 0:00:16]} 4. d3 {[%emt 0:00:35]} e5 {[%emt 0:00:56]} 5. a3 {[%emt 0:00:09]} c5 {[%emt 0:11:58]} 6. e3 {[%emt 0:04:17]} Nc6 {[%emt 0:07:20]} 7. b5 {[%emt 0:03:14]} Nce7 {[%emt 0:01:01]} 8. exd4 {[%emt 0:02:20] The position is equal.} cxd4 {[%emt 0:04:40]} 9. a4 {[%emt 0:04:34]} Be6 {[%emt 0:06:11]} 10. Nbd2 {[%emt 0:03:09]} Nf5 {[%emt 0:05:47]} 11. g3 {[%emt 0:01:39]} Nd6 {[%emt 0:04:33]} (11... Be7 $11) 12. Bg2 $14 {[%emt 0:01:50]} Rc8 {[%emt 0:12:45]} 13. O-O {[%emt 0:00:58][%cal Of3d4]} Nf7 {[%emt 0:08:24]} 14. Nb3 {[%emt 0:03:31][%cal Of3d4]} Bb4 {[%emt 0:06:12] [#]} ({Better is} 14... Qd7) 15. Bd2 {[%emt 0:02:07]} (15. Rb1 $1 $16 {[%cal Ob3d4] Nbxd4! would now be deadly.} Bc3 16. Nfd2) 15... Bxd2 {[%emt 0:01:56]} 16. Nfxd2 {[%emt 0:00:22][%cal Bf3d2,Bd2e4,Be4c5,Bc5b7][%mdl 32]} Qc7 {[%emt 0:03:32]} (16... b6 $142) 17. Qf3 {[%emt 0:10:49]} Rb8 {[%emt 0:02:16]} 18. Rfe1 {[%emt 0:02:56] White is more active.} Ne7 {[%emt 0:05:31]} 19. Qe2 {[%emt 0:03:57]} (19. Nxd4 $18 Ng5 20. Qe2 (20. Qh5+ Bf7 $11)) 19... Rd8 {[%emt 0:04:09]} 20. a5 {[%emt 0:01:25]} O-O {[%emt 0:00:31]} 21. Ne4 {[%emt 0:01:45][%cal Ob5b6]} Bc8 {[%emt 0:01:46]} 22. Nec5 {[%emt 0:01:52]} Rfe8 {[%emt 0:02:18] [#]} (22... Rd6 $16 23. Na4 f5) 23. a6 $1 $18 {[%emt 0:04:23]} b6 {[%emt 0:00:08]} 24. Nb7 {[%emt 0:00:18]} Rd7 {[%emt 0:05:00]} 25. c5 {[%emt 0:05:42] Repels Nd6} Nd5 {[%emt 0:01:06]} 26. Nxd4 {[%emt 0:00:37] Hoping for Nc6.} bxc5 $2 {[%emt 0:01:40]} (26... Nf4 {was worth a try.} 27. gxf4 Rxd4) 27. Nc6 {[%emt 0:02:57]} Bxb7 {[%emt 0:02:06]} (27... Nb4 {might work better.} 28. Nxa7 (28. Nxc5 Rd6 $18) 28... Bxb7 29. axb7 (29. Bxb7 Nd6 $18) 29... e4 30. Bxe4 f5) 28. axb7 {[%emt 0:00:06]} Nd8 {[%emt 0:00:40]} 29. b8=Q {[%emt 0:00:22] Weighted Error Value: White=0.13 (very precise) /Black=0.41.  Mistake:       	White=2     	Black=6      Inaccurate:     	---       	Black=1      OK:         	White=8     	Black=3      Best:        	White=1     	Black=1      Strong:       	White=1     	---} 1-0

[Event "81st Georgian Women-ch 2024"]
[Site "Tbilisi"]
[Date "2024.02.12"]
[Round "4.4"]
[White "Mgeladze, Kesaria"]
[Black "Batsiashvili, Nino"]
[Result "0-1"]
[ECO "B11"]
[WhiteElo "2038"]
[BlackElo "2451"]
[Annotator "RC"]
[PlyCount "96"]
[EventDate "2024.02.08"]
[EventType "tourn"]
[EventCountry "GEO"]
[SourceTitle "playchess.com"]
[Source "ChessBase"]
[SourceQuality "1"]
[TimeControl "40/5400+30:1800+30"]

1. e4 {[%emt 0:00:03]} c6 {[%emt 0:00:02]} 2. Nf3 {[%emt 0:00:16]} d5 {[%emt 0:00:05]} 3. Nc3 {[%emt 0:00:10]} dxe4 {[%emt 0:00:03]} 4. Nxe4 {[%emt 0:00:07]} Nf6 {[%emt 0:00:02]} 5. Qe2 {[%emt 0:00:10]} Nxe4 {[%emt 0:00:05]} 6. Qxe4 {[%emt 0:00:07]} Nd7 {[%emt 0:00:09]} 7. Bc4 {[%emt 0:00:06]} Nf6 {[%emt 0:00:13]} 8. Ne5 {[%emt 0:00:07]} e6 {[%emt 0:00:04]} 9. Qe2 {[%emt 0:00:09]} b5 {[%emt 0:00:08]} 10. Bd3 {[%emt 0:00:09]} Qc7 {[%emt 0:00:49]} 11. a4 {[%emt 0:07:36]} Bd6 {[%emt 0:02:29]} 12. Nxc6 {[%emt 0:01:03]} b4 {[%emt 0:01:02]} 13. Nd4 {[%emt 0:01:23]} a6 {[%emt 0:00:09]} 14. Nf5 {[%emt 0:01:14]} Bb7 {[%emt 0:00:08]} 15. Nxd6+ {[%emt 0:00:26]} Qxd6 {[%emt 0:00:02]} 16. O-O {[%emt 0:01:32]} h5 {[%emt 0:00:04]} 17. Qe3 {[%emt 0:33:25]} Rd8 {[%emt 0:01:39]} 18. Be2 {[%emt 0:05:56]} Rh6 {[%emt 0:00:56]} 19. Bf3 {[%emt 0:06:32]} Ng4 {[%emt 0:08:23]} 20. Bxg4 {[%emt 0:00:05]} hxg4 {[%emt 0:00:04]} 21. Qg3 {[%emt 0:00:15]} Qxg3 {[%emt 0:25:37]} 22. fxg3 {[%emt 0:00:45]} Ke7 {[%emt 0:01:38]} 23. d3 {[%emt 0:03:17]} Rh5 {[%emt 0:00:05]} 24. Bd2 {[%emt 0:11:02]} a5 {[%emt 0:00:39]} 25. Rf4 {[%emt 0:04:39]} Rdh8 {[%emt 0:00:51]} 26. Raf1 {[%emt 0:00:13]} f5 {[%emt 0:01:14]} 27. Kf2 {[%emt 0:09:26]} Rxh2 {[%emt 0:04:02]} 28. Rg1 {[%emt 0:00:07]} Bd5 {[%emt 0:04:52]} 29. c4 {[%emt 0:04:45]} Bc6 {[%emt 0:02:25]} 30. Rd4 {[%emt 0:01:45]} e5 {[%emt 0:06:57]} 31. Bg5+ {[%emt 0:00:05]} Ke6 {[%emt 0:00:06]} 32. Rd8 {[%emt 0:00:08]} Bxa4 {[%emt 0:04:01]} 33. Rd5 {[%emt 0:01:47]} Bc6 {[%emt 0:02:58]} 34. Rxa5 {[%emt 0:00:08]} Ra8 {[%emt 0:03:40]} 35. Rxa8 {[%emt 0:09:02]} Bxa8 36. b3 {[%emt 0:00:00]} Bc6 {[%emt 0:00:38]} 37. Bd2 {[%emt 0:00:00]} Rh8 {[%emt 0:00:37]} 38. Re1 {[%emt 0:00:00]} Rd8 {[%emt 0:05:03]} 39. Re3 {[%emt 0:00:00]} g5 {[%emt 0:01:11]} 40. Bxb4 {[%emt 0:00:00]} f4 41. gxf4 {[%emt 0:00:00]} gxf4 {[%emt 0:00:15]} 42. Re2 {[%emt 0:06:07]} Rxd3 {[%emt 0:00:25]} 43. Ba5 {[%emt 0:03:06]} e4 {[%emt 0:04:30]} 44. b4 {[%emt 0:03:45]} e3+ {[%emt 0:00:42]} 45. Ke1 {[%emt 0:00:21]} f3 {[%emt 0:01:24]} 46. gxf3 {[%emt 0:00:04]} gxf3 {[%emt 0:00:47]} 47. Ra2 {[%emt 0:00:10]} f2+ {[%emt 0:01:04]} 48. Ke2 {[%emt 0:00:03]} Rd1 {[%emt 0:00:35]} 0-1

[Event "81st Georgian Women-ch 2024"]
[Site "Tbilisi"]
[Date "2024.02.12"]
[Round "4.5"]
[White "Donghvani, Nia"]
[Black "Khotenashvili, Bella"]
[Result "1-0"]
[ECO "D85"]
[WhiteElo "2036"]
[BlackElo "2467"]
[Annotator "RC"]
[PlyCount "221"]
[EventDate "2024.02.08"]
[EventType "tourn"]
[EventCountry "GEO"]
[SourceTitle "playchess.com"]
[Source "ChessBase"]
[SourceQuality "1"]
[TimeControl "40/5400+30:1800+30"]

1. c4 {[%emt 0:00:02]} Nf6 {[%emt 0:07:16]} 2. Nc3 {[%emt 0:01:16]} d5 {[%emt 0:00:19]} 3. cxd5 {[%emt 0:01:13]} Nxd5 {[%emt 0:00:06]} 4. e4 {[%emt 0:02:16]} Nxc3 {[%emt 0:00:49]} 5. bxc3 {[%emt 0:00:04]} g6 {[%emt 0:00:30]} 6. d4 {[%emt 0:00:55]} Bg7 {[%emt 0:00:05]} 7. Nf3 {[%emt 0:00:04]} c5 {[%emt 0:00:07]} 8. Bb5+ {[%emt 0:12:25]} Nd7 {[%emt 0:00:54]} 9. O-O {[%emt 0:00:41]} O-O {[%emt 0:01:01]} 10. a4 {[%emt 0:01:11]} Nf6 {[%emt 0:02:26]} 11. Re1 {[%emt 0:00:46]} Bg4 {[%emt 0:04:52]} 12. Bb2 {[%emt 0:13:34]} Qc7 {[%emt 0:08:52]} 13. h3 {[%emt 0:00:40]} Bxf3 {[%emt 0:05:03]} 14. Qxf3 {[%emt 0:00:02]} Rfd8 {[%emt 0:12:01]} 15. Bf1 {[%emt 0:03:04]} e6 {[%emt 0:08:35]} 16. Rad1 {[%emt 0:08:08]} Ne8 {[%emt 0:18:40]} 17. e5 {[%emt 0:03:17]} a6 {[%emt 0:13:54]} 18. Bc1 {[%emt 0:02:11]} Rd7 {[%emt 0:04:25]} 19. h4 {[%emt 0:02:08]} cxd4 {[%emt 0:01:47]} 20. cxd4 {[%emt 0:00:05]} Qa5 {[%emt 0:00:13]} 21. Qb3 {[%emt 0:18:09]} Rc8 {[%emt 0:01:31]} 22. Bb2 {[%emt 0:00:05]} Qd8 {[%emt 0:01:59]} 23. Re4 {[%emt 0:02:52]} Nc7 {[%emt 0:00:37]} 24. Rc1 {[%emt 0:05:58]} Nd5 {[%emt 0:00:41]} 25. Rxc8 {[%emt 0:00:26]} Qxc8 {[%emt 0:00:02]} 26. h5 {[%emt 0:00:21]} Qc6 {[%emt 0:01:40]} 27. hxg6 {[%emt 0:03:49]} hxg6 {[%emt 0:00:02]} 28. Re1 {[%emt 0:03:36]} Qb6 {[%emt 0:02:46]} 29. Bc4 {[%emt 0:01:15]} Qxb3 {[%emt 0:03:00]} 30. Bxb3 {[%emt 0:00:01]} Nb4 {[%emt 0:00:39]} 31. Rc1 {[%emt 0:00:19]} Nc6 {[%emt 0:00:23]} 32. Rd1 {[%emt 0:00:14]} Ne7 {[%emt 0:00:39]} 33. Kf1 {[%emt 0:03:18]} Bf8 {[%emt 0:00:27]} 34. Ke2 {[%emt 0:01:36]} Nd5 {[%emt 0:00:28]} 35. Bxd5 {[%emt 0:00:31]} Rxd5 {[%emt 0:00:04]} 36. Bc3 {[%emt 0:00:03]} Be7 {[%emt 0:00:38]} 37. Rb1 {[%emt 0:00:20]} Rd7 {[%emt 0:00:01]} 38. f4 {[%emt 0:00:59]} g5 {[%emt 0:00:31]} 39. g3 {[%emt 0:00:52]} Kg7 {[%emt 0:01:21]} 40. Kd3 {[%emt 0:00:00]} Kg6 {[%emt 0:00:00]} 41. Ke4 {[%emt 0:07:40]} g4 {[%emt 0:06:32]} 42. Ba5 {[%emt 0:02:15]} f5+ {[%emt 0:10:47]} 43. exf6 {[%emt 0:02:04]} Bxf6 {[%emt 0:00:05]} 44. Bb6 {[%emt 0:05:00]} Rh7 {[%emt 0:01:57]} 45. Bc5 {[%emt 0:01:31]} Rh2 {[%emt 0:06:50]} 46. Rb6 {[%emt 0:05:52]} Re2+ {[%emt 0:00:50]} 47. Kd3 {[%emt 0:00:02]} Rg2 {[%emt 0:00:10]} 48. Rxe6 {[%emt 0:00:04]} Kf5 {[%emt 0:02:28]} 49. Re3 {[%emt 0:01:23]} Ra2 {[%emt 0:00:47]} 50. Re8 {[%emt 0:03:52]} Rg2 {[%emt 0:04:17]} 51. Re3 {[%emt 0:01:56]} Ra2 {[%emt 0:00:34]} 52. Re8 {[%emt 0:00:02]} Rxa4 {[%emt 0:01:01]} 53. Rf8 {[%emt 0:02:07]} b5 {[%emt 0:00:34]} 54. Ke3 {[%emt 0:04:54]} Ra1 {[%emt 0:00:36]} 55. d5 {[%emt 0:03:46]} Rd1 {[%emt 0:00:11]} 56. Ke2 {[%emt 0:02:03]} Rxd5 {[%emt 0:00:03]} 57. Be7 {[%emt 0:00:02]} Ke6 {[%emt 0:01:06]} 58. Bxf6 {[%emt 0:00:25]} Rc5 {[%emt 0:00:26]} 59. Be5 {[%emt 0:01:20]} a5 {[%emt 0:00:16]} 60. Rg8 {[%emt 0:02:41]} b4 {[%emt 0:01:00]} 61. Rxg4 {[%emt 0:00:19]} Kd5 {[%emt 0:00:30]} 62. Kd3 {[%emt 0:00:22]} Rc1 {[%emt 0:00:18]} 63. Rg8 {[%emt 0:00:14]} Rd1+ {[%emt 0:00:11]} 64. Kc2 {[%emt 0:00:13]} Rg1 {[%emt 0:00:16]} 65. Ra8 {[%emt 0:02:39]} Rg2+ {[%emt 0:00:44]} 66. Kb1 {[%emt 0:00:40]} Kc4 {[%emt 0:00:56]} 67. Rxa5 {[%emt 0:00:34]} Rxg3 {[%emt 0:00:33]} 68. Ra8 {[%emt 0:00:58]} Rg1+ {[%emt 0:00:12]} 69. Kb2 {[%emt 0:00:20]} Rg2+ {[%emt 0:00:12]} 70. Kc1 {[%emt 0:00:21]} b3 {[%emt 0:01:06]} 71. Ra4+ {[%emt 0:00:37]} Kb5 {[%emt 0:00:35]} 72. Rd4 {[%emt 0:00:46]} Rc2+ {[%emt 0:00:10]} 73. Kb1 {[%emt 0:00:05]} Rf2 {[%emt 0:00:06]} 74. Re4 {[%emt 0:00:17]} Ka5 {[%emt 0:00:41]} 75. Bc3+ {[%emt 0:00:32]} Kb5 {[%emt 0:00:24]} 76. Rb4+ {[%emt 0:00:13]} Kc6 {[%emt 0:00:06]} 77. Be5 {[%emt 0:00:04]} Kd5 {[%emt 0:00:13]} 78. Rxb3 {[%emt 0:00:04]} Ke4 {[%emt 0:00:07]} 79. Rc3 {[%emt 0:00:18]} Kf5 {[%emt 0:00:14]} 80. Rc2 {[%emt 0:00:04]} Rf1+ {[%emt 0:00:08]} 81. Kb2 {[%emt 0:00:03]} Rf3 {[%emt 0:00:06]} 82. Rc3 {[%emt 0:00:05]} Rf1 {[%emt 0:00:11]} 83. Kb3 {[%emt 0:00:04]} Rb1+ {[%emt 0:00:29]} 84. Kc4 {[%emt 0:00:08]} Ke4 {[%emt 0:00:07]} 85. Kc5 {[%emt 0:00:27]} Rd1 {[%emt 0:00:11]} 86. Rc4+ {[%emt 0:00:40]} Kf5 {[%emt 0:00:04]} 87. Rd4 {[%emt 0:01:02]} Ra1 {[%emt 0:00:27]} 88. Kd6 {[%emt 0:00:54]} Ra7 {[%emt 0:00:18]} 89. Rc4 {[%emt 0:00:28]} Ra6+ {[%emt 0:00:18]} 90. Kd7 {[%emt 0:01:35]} Ra7+ {[%emt 0:00:11]} 91. Bc7 {[%emt 0:00:13]} Ra2 {[%emt 0:03:03]} 92. Rc5+ {[%emt 0:00:09]} Kf6 {[%emt 0:00:04]} 93. Bd8+ {[%emt 0:00:51]} Kf7 {[%emt 0:00:19]} 94. Rf5+ {[%emt 0:00:13]} Kg6 {[%emt 0:00:02]} 95. Rf6+ {[%emt 0:00:22]} Kg7 {[%emt 0:00:02]} 96. Rd6 {[%emt 0:01:19]} Kf7 {[%emt 0:00:32]} 97. f5 {[%emt 0:00:25]} Ra7+ {[%emt 0:00:14]} 98. Kc6 {[%emt 0:00:42]} Ra2 {[%emt 0:00:08]} 99. f6 {[%emt 0:01:04]} Rc2+ {[%emt 0:00:14]} 100. Kd7 {[%emt 0:00:04]} Ra2 {[%emt 0:00:14]} 101. Be7 {[%emt 0:00:42]} Ra1 {[%emt 0:00:32]} 102. Rd4 {[%emt 0:00:31]} Ra2 {[%emt 0:00:29]} 103. Kd6 {[%emt 0:00:09]} Ra1 {[%emt 0:00:18]} 104. Ke5 {[%emt 0:00:16]} Ra5+ {[%emt 0:00:59]} 105. Rd5 {[%emt 0:00:18]} Ra1 {[%emt 0:00:06]} 106. Bb4 {[%emt 0:00:30]} Ra7 {[%emt 0:01:59]} 107. Kf5 {[%emt 0:00:19]} Rb7 {[%emt 0:00:13]} 108. Bc5 {[%emt 0:00:39]} Rc7 {[%emt 0:01:53]} 109. Re5 {[%emt 0:00:07]} Rc8 {[%emt 0:00:08]} 110. Re7+ {[%emt 0:00:09]} Kg8 {[%emt 0:00:04]} 111. Ke4 {[%emt 0:04:07]} 1-0

[Event "81st Georgian Women-ch 2024"]
[Site "Tbilisi"]
[Date "2024.02.13"]
[Round "5.1"]
[White "Khotenashvili, Bella"]
[Black "Melia, Salome"]
[Result "1-0"]
[ECO "E05"]
[WhiteElo "2467"]
[BlackElo "2355"]
[Annotator "RC"]
[PlyCount "57"]
[EventDate "2024.02.08"]
[EventType "tourn"]
[EventCountry "GEO"]
[SourceTitle "playchess.com"]
[Source "ChessBase"]
[SourceQuality "1"]
[TimeControl "40/5400+30:1800+30"]

1. d4 {[%emt 0:00:12]} d5 {[%emt 0:00:59]} 2. c4 {[%emt 0:00:14]} e6 {[%emt 0:00:06]} 3. Nf3 {[%emt 0:00:05]} Nf6 {[%emt 0:00:29]} 4. g3 {[%emt 0:00:06]} Be7 {[%emt 0:00:26]} 5. Bg2 {[%emt 0:00:10]} O-O {[%emt 0:00:04]} 6. O-O {[%emt 0:01:14]} dxc4 {[%emt 0:00:16]} 7. Qc2 {[%emt 0:00:11]} a6 {[%emt 0:00:06]} 8. a4 {[%emt 0:00:31]} Bd7 {[%emt 0:01:10]} 9. Nc3 {[%emt 0:00:36]} Nc6 {[%emt 0:08:01]} 10. e4 {[%emt 0:02:46]} Nb4 {[%emt 0:07:07]} 11. Qe2 {[%emt 0:00:05]} c5 {[%emt 0:01:58]} 12. Qxc4 {[%emt 0:08:27]} Nc2 {[%emt 0:17:23]} 13. e5 {[%emt 0:01:48]} Nxa1 {[%emt 0:01:09]} 14. exf6 {[%emt 0:04:08]} Bxf6 {[%emt 0:00:10]} 15. dxc5 {[%emt 0:01:27]} Bc6 {[%emt 0:14:16]} 16. Bf4 {[%emt 0:09:06]} Nc2 {[%emt 0:00:49]} 17. Ne4 {[%emt 0:27:11]} Bxe4 {[%emt 0:01:21]} 18. Qxe4 {[%emt 0:02:16]} Nd4 {[%emt 0:00:26]} 19. Rd1 {[%emt 0:15:26]} Nxf3+ {[%emt 0:04:19]} 20. Bxf3 {[%emt 0:00:03]} Qa5 {[%emt 0:06:24]} 21. Bd6 {[%emt 0:00:45]} Rfd8 {[%emt 0:05:21]} 22. Qxb7 {[%emt 0:03:58]} Qxa4 {[%emt 0:13:08]} 23. c6 {[%emt 0:02:41]} Qc2 {[%emt 0:11:36]} 24. c7 {[%emt 0:01:22]} Rdc8 {[%emt 0:00:32]} 25. Kg2 {[%emt 0:03:23]} g5 {[%emt 0:02:05]} 26. Qxa8 {[%emt 0:07:43]} Rxa8 {[%emt 0:00:21]} 27. Bxa8 {[%emt 0:00:05]} Kg7 {[%emt 0:01:53]} 28. Rf1 {[%emt 0:01:42]} Be7 {[%emt 0:01:58]} 29. Bb7 {[%emt 0:00:19]} 1-0

[Event "81st Georgian Women-ch 2024"]
[Site "Tbilisi"]
[Date "2024.02.13"]
[Round "5.2"]
[White "Batsiashvili, Nino"]
[Black "Donghvani, Nia"]
[Result "1-0"]
[ECO "D53"]
[WhiteElo "2451"]
[BlackElo "2036"]
[Annotator "RC"]
[PlyCount "85"]
[EventDate "2024.02.08"]
[EventType "tourn"]
[EventCountry "GEO"]
[SourceTitle "playchess.com"]
[Source "ChessBase"]
[SourceQuality "1"]
[TimeControl "40/5400+30:1800+30"]

1. d4 {[%emt 0:00:02]} Nf6 {[%emt 0:00:05]} 2. c4 {[%emt 0:00:03]} e6 {[%emt 0:00:04]} 3. Nc3 {[%emt 0:00:05]} d5 {[%emt 0:00:25]} 4. Bg5 {[%emt 0:00:37]} Be7 {[%emt 0:03:38]} 5. e3 {[%emt 0:01:02]} h6 {[%emt 0:00:24]} 6. Bh4 {[%emt 0:01:26]} Nbd7 {[%emt 0:04:45]} 7. cxd5 {[%emt 0:03:07]} Nxd5 {[%emt 0:01:23]} 8. Bxe7 {[%emt 0:02:10]} Qxe7 {[%emt 0:00:06]} 9. Nf3 {[%emt 0:00:05]} Nxc3 {[%emt 0:01:34]} 10. bxc3 {[%emt 0:00:02]} e5 {[%emt 0:00:39]} 11. Be2 {[%emt 0:01:33]} O-O {[%emt 0:02:28]} 12. Rb1 {[%emt 0:00:23]} c6 {[%emt 0:06:25]} 13. O-O {[%emt 0:00:29]} e4 {[%emt 0:00:56]} 14. Nd2 {[%emt 0:00:08]} f5 {[%emt 0:00:30]} 15. Nc4 {[%emt 0:10:35]} Kh7 {[%emt 0:00:14]} 16. f3 {[%emt 0:01:26]} Nf6 {[%emt 0:02:46]} 17. Ne5 {[%emt 0:03:07]} Be6 {[%emt 0:00:06]} 18. Qc2 {[%emt 0:00:52]} Rac8 {[%emt 0:03:48]} 19. fxe4 {[%emt 0:06:04]} fxe4 {[%emt 0:00:33]} 20. Rf4 {[%emt 0:03:50]} c5 {[%emt 0:04:08]} 21. Rbf1 {[%emt 0:01:14]} cxd4 {[%emt 0:05:29]} 22. exd4 {[%emt 0:02:36]} Qa3 {[%emt 0:16:09]} 23. Rxf6 {[%emt 0:22:51]} gxf6 {[%emt 0:00:42]} 24. Qxe4+ {[%emt 0:00:15]} f5 {[%emt 0:00:01]} 25. Qxb7+ {[%emt 0:01:22]} Kg8 {[%emt 0:00:03]} 26. Qf3 {[%emt 0:13:06]} Qxc3 {[%emt 0:13:26]} 27. Qf4 {[%emt 0:01:47]} Kh7 {[%emt 0:07:17]} 28. Bf3 {[%emt 0:04:34]} Qc7 {[%emt 0:05:52]} 29. h4 {[%emt 0:03:42]} Bxa2 {[%emt 0:00:50]} 30. Bh5 {[%emt 0:00:15]} Be6 {[%emt 0:03:34]} 31. Bg6+ {[%emt 0:00:29]} Kg7 {[%emt 0:00:19]} 32. Kh2 {[%emt 0:00:25]} Qa5 {[%emt 0:08:59]} 33. Bh5 {[%emt 0:07:29]} Rc3 {[%emt 0:04:27]} 34. Bf3 {[%emt 0:00:09]} Kh7 {[%emt 0:01:35]} 35. Nc6 {[%emt 0:00:19]} Qb5 {[%emt 0:01:13]} 36. Qd6 {[%emt 0:02:28]} Qxf1 {[%emt 0:02:42]} 37. Qxf8 {[%emt 0:00:03]} Rxf3 {[%emt 0:00:23]} 38. Qe7+ {[%emt 0:01:16]} Kh8 {[%emt 0:00:12]} 39. Qf6+ {[%emt 0:00:15]} Kh7 {[%emt 0:00:55]} 40. Ne5 {[%emt 0:00:00]} Ra3 {[%emt 0:00:00]} 41. Qg6+ {[%emt 0:03:44]} Kh8 {[%emt 0:00:54]} 42. Qxh6+ {[%emt 0:00:07]} Kg8 {[%emt 0:00:02]} 43. Qxe6+ {[%emt 0:00:08]} 1-0

[Event "81st Georgian Women-ch 2024"]
[Site "Tbilisi"]
[Date "2024.02.13"]
[Round "5.3"]
[White "Tsetskhladze, Mariam"]
[Black "Mgeladze, Kesaria"]
[Result "0-1"]
[ECO "C04"]
[WhiteElo "1912"]
[BlackElo "2038"]
[Annotator "NA RC"]
[PlyCount "84"]
[EventDate "2024.02.08"]
[EventType "tourn"]
[EventCountry "GEO"]
[SourceTitle "playchess.com"]
[Source "ChessBase"]
[SourceQuality "1"]
[TimeControl "40/5400+30:1800+30"]

1. e4 {[%emt 0:00:31]} e6 {[%emt 0:00:11]} 2. d4 {[%emt 0:00:09]} d5 {[%emt 0:00:06]} 3. Nd2 {[%emt 0:00:56]} Nc6 {[%emt 0:00:11]} 4. Ngf3 {[%emt 0:06:02]} Nf6 {[%emt 0:01:44]} 5. e5 {[%emt 0:00:59]} Nd7 {[%emt 0:00:19]} 6. c3 {[%emt 0:01:31]} f6 {[%emt 0:01:04]} 7. Bb5 {[%emt 0:21:31]} fxe5 {[%emt 0:00:34]} 8. dxe5 {[%emt 0:03:17]} Be7 {[%emt 0:00:09]} 9. O-O {[%emt 0:17:11]} O-O {[%emt 0:00:12]} 10. Re1 {[%emt 0:01:21]} Qe8 {[%emt 0:00:38]} 11. Nf1 {[%emt 0:07:27]} Qf7 {[%emt 0:03:37]} 12. Qc2 {[%emt 0:01:56]} Bc5 {[%emt 0:35:47]} 13. Be3 {[%emt 0:10:55]} Bxe3 {[%emt 0:00:36]} 14. Rxe3 {[%emt 0:00:06]} Nc5 {[%emt 0:09:29]} 15. b4 {[%emt 0:03:41]} Ne4 {[%emt 0:00:10]} 16. Bd3 {[%emt 0:01:37]} Ne7 {[%emt 0:02:02]} 17. Bxe4 {[%emt 0:05:51]} dxe4 {[%emt 0:00:05]} 18. Ng5 {[%emt 0:01:08]} Qf5 {[%emt 0:02:20]} 19. Nxe4 {[%emt 0:02:16]} Qxe5 {[%emt 0:06:25]} 20. Nc5 {[%emt 0:00:34]} Qf5 {[%emt 0:01:56]} 21. Qd2 {[%emt 0:04:47]} b6 {[%emt 0:03:43]} 22. Ng3 {[%emt 0:03:10]} Qd5 {[%emt 0:03:31]} 23. Rd3 {[%emt 0:00:20]} Qc6 {[%emt 0:00:57]} 24. Nce4 {[%emt 0:01:41]} Ba6 {[%emt 0:05:38]} 25. Re3 {[%emt 0:01:05]} Nd5 {[%emt 0:03:45]} 26. Ree1 {[%emt 0:00:21]} Rad8 {[%emt 0:00:34]} 27. Qb2 {[%emt 0:02:03]} Nf4 {[%emt 0:00:51]} 28. Red1 {[%emt 0:01:14]} Nd3 {[%emt 0:07:28]} 29. Qb3 {[%emt 0:00:23]} Bc4 {[%emt 0:00:15]} 30. Qc2 {[%emt 0:00:27]} b5 {[%emt 0:02:17]} 31. a4 {[%emt 0:00:52]} bxa4 {[%emt 0:01:42]} 32. Rxa4 {[%emt 0:00:29]} Bb5 {[%emt 0:01:04]} 33. Raa1 {[%emt 0:00:31]} Nxb4 {[%emt 0:00:48]} 34. Qb3 {[%emt 0:00:31]} Rxd1+ {[%emt 0:01:26]} 35. Rxd1 {[%emt 0:00:05]} Ba4 {[%emt 0:00:32]} 36. Qxb4 {[%emt 0:00:34]} Bxd1 {[%emt 0:00:04]} 37. Qd4 {[%emt 0:00:29]} Qd5 {[%emt 0:00:28]} 38. Qe3 {[%emt 0:00:32]} Bc2 {[%emt 0:00:55]} 39. h3 {[%emt 0:00:16]} Bxe4 {[%emt 0:00:45]} 40. Nxe4 {[%emt 0:00:00]} a5 {[%emt 0:00:00]} 41. f3 {[%emt 0:01:51]} a4 {[%emt 0:01:28]} 42. Qa7 {[%emt 0:00:42]} Qc6 {[%emt 0:01:08]} 0-1